[Event "Early-Titled-Tuesday-Blitz-March-26-2024"]
[Site "Chess.com"]
[Date "2024.03.26"]
[Round "10"]
[White "noblerone"]
[Black "cthulhuuu"]
[Result "0-1"]
[WhiteElo "2537"]
[BlackElo "2430"]
[TimeControl "180+1"]
[EndTime "9:53:23 PDT"]
[Termination "cthulhuuu won on time"]

1. d4 {[%clk 0:02:59]} 1... Nf6 {[%clk 0:02:59.9]} 2. Nf3 {[%clk 0:02:54.2]}
2... g6 {[%clk 0:02:59.8]} 3. Bg5 {[%clk 0:02:54.7]} 3... Bg7 {[%clk 0:03:00.4]}
4. Nbd2 {[%clk 0:02:54.2]} 4... d5 {[%clk 0:03:00.6]} 5. e3 {[%clk 0:02:53.8]}
5... c6 {[%clk 0:03:00.7]} 6. Be2 {[%clk 0:02:53.9]} 6... Qb6 {[%clk 0:03:00.3]}
7. Nb3 {[%clk 0:02:51.3]} 7... a5 {[%clk 0:02:59.9]} 8. a4 {[%clk 0:02:51.7]}
8... Bf5 {[%clk 0:02:55.9]} 9. O-O {[%clk 0:02:51.5]} 9... O-O {[%clk
0:02:55.8]} 10. h3 {[%clk 0:02:40.8]} 10... Nbd7 {[%clk 0:02:52.2]} 11. c4
{[%clk 0:02:37.2]} 11... Rfe8 {[%clk 0:02:19.3]} 12. c5 {[%clk 0:02:27]} 12...
Qb4 {[%clk 0:02:19]} 13. Bd3 {[%clk 0:01:12.6]} 13... Ne4 {[%clk 0:02:15.4]} 14.
Bxe4 {[%clk 0:01:05.3]} 14... Bxe4 {[%clk 0:02:16]} 15. Nfd2 {[%clk 0:01:01.2]}
15... Bd3 {[%clk 0:02:12.6]} 16. Re1 {[%clk 0:01:01.3]} 16... f6 {[%clk
0:02:12.4]} 17. Bh4 {[%clk 0:00:57.1]} 17... e5 {[%clk 0:02:11.4]} 18. Nf3
{[%clk 0:00:56.2]} 18... Bf5 {[%clk 0:01:43]} 19. Nfd2 {[%clk 0:00:47.6]} 19...
Kf7 {[%clk 0:01:04.3]} 20. Qc1 {[%clk 0:00:33.7]} 20... Bd3 {[%clk 0:00:58.5]}
21. Qc3 {[%clk 0:00:33.2]} 21... Bc4 {[%clk 0:00:47.6]} 22. Nxc4 {[%clk
0:00:28.2]} 22... dxc4 {[%clk 0:00:28.4]} 23. Nd2 {[%clk 0:00:22.7]} 23... exd4
{[%clk 0:00:18.9]} 24. exd4 {[%clk 0:00:21.2]} 24... b5 {[%clk 0:00:04.5]} 25.
cxb6 {[%clk 0:00:18.8]} 25... Nxb6 {[%clk 0:00:04.8]} 26. Ne4 {[%clk 0:00:10.5]}
26... Nd5 {[%clk 0:00:04.6]} 27. Qxb4 {[%clk 0:00:08.4]} 27... axb4 {[%clk
0:00:04.2]} 28. Nd6+ {[%clk 0:00:09]} 28... Kf8 {[%clk 0:00:04.6]} 29. Nxe8
{[%clk 0:00:09.1]} 29... Rxe8 {[%clk 0:00:05.2]} 30. Rxe8+ {[%clk 0:00:09.2]}
30... Kxe8 {[%clk 0:00:05.6]} 31. a5 {[%clk 0:00:03.9]} 31... f5 {[%clk
0:00:05.1]} 32. a6 {[%clk 0:00:04]} 32... Bxd4 {[%clk 0:00:05.2]} 33. a7 {[%clk
0:00:03.7]} 33... Bxa7 {[%clk 0:00:05.4]} 34. Rxa7 {[%clk 0:00:04.6]} 34... b3
{[%clk 0:00:02.8]} 0-1

[Event "Early-Titled-Tuesday-Blitz-March-26-2024"]
[Site "Chess.com"]
[Date "2024.03.26"]
[Round "10"]
[White "AsaHoffmann"]
[Black "Likvidator228"]
[Result "1/2-1/2"]
[WhiteElo "2425"]
[BlackElo "2575"]
[TimeControl "180+1"]
[EndTime "9:53:25 PDT"]
[Termination "Game drawn by repetition"]

1. d4 {[%clk 0:02:53]} 1... f5 {[%clk 0:03:00]} 2. Nc3 {[%clk 0:02:49.2]} 2...
Nf6 {[%clk 0:02:58.2]} 3. Bg5 {[%clk 0:02:48.6]} 3... d5 {[%clk 0:02:58.8]} 4.
f3 {[%clk 0:02:47.9]} 4... e6 {[%clk 0:02:52]} 5. e4 {[%clk 0:02:47.7]} 5... Be7
{[%clk 0:02:49.7]} 6. exf5 {[%clk 0:02:46.9]} 6... exf5 {[%clk 0:02:49.8]} 7.
Bd3 {[%clk 0:02:46]} 7... O-O {[%clk 0:02:47.9]} 8. Nge2 {[%clk 0:02:45.9]} 8...
h6 {[%clk 0:02:46.8]} 9. Bh4 {[%clk 0:02:45.7]} 9... c5 {[%clk 0:02:31.1]} 10.
dxc5 {[%clk 0:02:42.4]} 10... Bxc5 {[%clk 0:02:31.2]} 11. Qd2 {[%clk 0:02:41.6]}
11... Nc6 {[%clk 0:02:24.4]} 12. O-O-O {[%clk 0:02:39.7]} 12... Nb4 {[%clk
0:02:24.7]} 13. Kb1 {[%clk 0:02:31.1]} 13... Nxd3 {[%clk 0:02:04.7]} 14. Qxd3
{[%clk 0:02:30.4]} 14... g5 {[%clk 0:02:03]} 15. Bg3 {[%clk 0:02:26.7]} 15...
Be6 {[%clk 0:01:51.1]} 16. Nd4 {[%clk 0:02:21.6]} 16... Bxd4 {[%clk 0:01:47.1]}
17. Qxd4 {[%clk 0:02:21.4]} 17... Qd7 {[%clk 0:01:47]} 18. Be5 {[%clk
0:02:20.2]} 18... Nh5 {[%clk 0:01:20.2]} 19. h4 {[%clk 0:02:18.7]} 19... g4
{[%clk 0:01:18.6]} 20. fxg4 {[%clk 0:02:13.8]} 20... fxg4 {[%clk 0:01:19.5]} 21.
Rhf1 {[%clk 0:02:10.6]} 21... Rxf1 {[%clk 0:01:19.2]} 22. Rxf1 {[%clk
0:02:10.4]} 22... Rf8 {[%clk 0:01:17.5]} 23. Rxf8+ {[%clk 0:02:08.7]} 23... Kxf8
{[%clk 0:01:17.7]} 24. g3 {[%clk 0:02:08.4]} 24... a6 {[%clk 0:01:11.6]} 25. a3
{[%clk 0:02:06.7]} 25... Kf7 {[%clk 0:01:00.9]} 26. Qe3 {[%clk 0:02:06.3]} 26...
Kg6 {[%clk 0:00:58.9]} 27. Ne2 {[%clk 0:02:04]} 27... Bf5 {[%clk 0:00:51]} 28.
Bf4 {[%clk 0:01:59.9]} 28... Be4 {[%clk 0:00:46.5]} 29. Nc3 {[%clk 0:01:58.3]}
29... Bf5 {[%clk 0:00:34.3]} 30. Qb6+ {[%clk 0:01:50.6]} 30... Nf6 {[%clk
0:00:32.3]} 31. Bxh6 {[%clk 0:01:44.3]} 31... d4 {[%clk 0:00:28.3]} 32. Bg5
{[%clk 0:01:43.6]} 32... Be6 {[%clk 0:00:27.4]} 33. Ne2 {[%clk 0:01:35.6]} 33...
Ne4 {[%clk 0:00:22]} 34. Nf4+ {[%clk 0:01:33.6]} 34... Kf5 {[%clk 0:00:21.8]}
35. Qxe6+ {[%clk 0:01:28.6]} 35... Qxe6 {[%clk 0:00:22.7]} 36. Nxe6 {[%clk
0:01:28.7]} 36... Kxe6 {[%clk 0:00:23.6]} 37. Bf4 {[%clk 0:01:28.9]} 37... Kf5
{[%clk 0:00:18.5]} 38. h5 {[%clk 0:01:28.4]} 38... Nf6 {[%clk 0:00:19]} 39. h6
{[%clk 0:01:28.1]} 39... Kg6 {[%clk 0:00:18.3]} 40. Kc1 {[%clk 0:01:26.7]} 40...
Nd5 {[%clk 0:00:18.7]} 41. Kd2 {[%clk 0:01:24.6]} 41... Nxf4 {[%clk 0:00:18.8]}
42. gxf4 {[%clk 0:01:24]} 42... Kxh6 {[%clk 0:00:19.4]} 43. Kd3 {[%clk
0:01:22.3]} 43... g3 {[%clk 0:00:15.3]} 44. Ke2 {[%clk 0:01:21.9]} 44... Kh5
{[%clk 0:00:15.9]} 45. Kf3 {[%clk 0:01:21.7]} 45... Kh4 {[%clk 0:00:16.5]} 46.
f5 {[%clk 0:01:21.9]} 46... Kg5 {[%clk 0:00:14.5]} 47. Kxg3 {[%clk 0:01:21.4]}
47... Kxf5 {[%clk 0:00:15.1]} 48. Kf3 {[%clk 0:01:21.7]} 48... Ke5 {[%clk
0:00:15]} 49. Kf2 {[%clk 0:01:19.8]} 49... Ke4 {[%clk 0:00:14.7]} 50. Ke2 {[%clk
0:01:20.1]} 50... b5 {[%clk 0:00:14.4]} 51. b4 {[%clk 0:01:19.6]} 51... Ke5
{[%clk 0:00:14.1]} 52. Kd3 {[%clk 0:01:18]} 52... Kd5 {[%clk 0:00:14.6]} 53. c3
{[%clk 0:01:16.5]} 53... dxc3 {[%clk 0:00:14.9]} 54. Kxc3 {[%clk 0:01:16.7]}
54... Ke4 {[%clk 0:00:15.5]} 55. Kb3 {[%clk 0:01:15.8]} 55... Kd3 {[%clk
0:00:15.6]} 56. a4 {[%clk 0:01:15.2]} 56... Kd4 {[%clk 0:00:14.8]} 57. axb5
{[%clk 0:01:15]} 57... axb5 {[%clk 0:00:15]} 58. Kc2 {[%clk 0:01:11.5]} 58...
Kc4 {[%clk 0:00:15.2]} 59. Kb1 {[%clk 0:01:10.7]} 59... Kc3 {[%clk 0:00:14.9]}
60. Kc1 {[%clk 0:01:10.5]} 60... Kb3 {[%clk 0:00:14.7]} 61. Kb1 {[%clk
0:01:10.2]} 61... Ka3 {[%clk 0:00:14.7]} 62. Kc1 {[%clk 0:01:09.3]} 62... Ka4
{[%clk 0:00:14.1]} 63. Kc2 {[%clk 0:01:09.1]} 63... Ka3 {[%clk 0:00:13.4]} 64.
Kc1 {[%clk 0:01:08.7]} 64... Kb3 {[%clk 0:00:13.5]} 65. Kb1 {[%clk 0:01:08.6]}
65... Kc3 {[%clk 0:00:14.1]} 66. Ka2 {[%clk 0:01:06.3]} 66... Kc4 {[%clk
0:00:14.3]} 67. Kb1 {[%clk 0:01:05.2]} 67... Kxb4 {[%clk 0:00:14.7]} 68. Kb2
{[%clk 0:01:05.2]} 68... Kc4 {[%clk 0:00:15.3]} 69. Kc2 {[%clk 0:01:05.5]} 69...
Kd4 {[%clk 0:00:15.5]} 70. Kb3 {[%clk 0:01:05.1]} 70... Kc5 {[%clk 0:00:16.1]}
71. Kc3 {[%clk 0:01:05.1]} 71... b4+ {[%clk 0:00:16.3]} 72. Kb3 {[%clk
0:01:05.4]} 72... Kb5 {[%clk 0:00:16.6]} 73. Kb2 {[%clk 0:01:05.7]} 73... Kc4
{[%clk 0:00:17.4]} 74. Kc2 {[%clk 0:01:05.9]} 74... Kd4 {[%clk 0:00:18.1]} 75.
Kb2 {[%clk 0:01:05.7]} 75... Kc5 {[%clk 0:00:19]} 76. Kb3 {[%clk 0:01:05.4]}
76... Kb5 {[%clk 0:00:19.9]} 77. Kb2 {[%clk 0:01:05.8]} 77... Ka5 {[%clk
0:00:20.8]} 78. Kb3 {[%clk 0:01:05.4]} 78... Kb5 {[%clk 0:00:20.1]} 1/2-1/2

[Event "Early-Titled-Tuesday-Blitz-March-26-2024"]
[Site "Chess.com"]
[Date "2024.03.26"]
[Round "10"]
[White "vlad10898"]
[Black "1mbl4"]
[Result "1-0"]
[WhiteElo "2871"]
[BlackElo "2596"]
[TimeControl "180+1"]
[EndTime "9:53:26 PDT"]
[Termination "vlad10898 won by resignation"]

1. e4 {[%clk 0:03:00.9]} 1... c5 {[%clk 0:02:57.3]} 2. Nc3 {[%clk 0:02:59.4]}
2... Nc6 {[%clk 0:02:56.3]} 3. g3 {[%clk 0:02:59.1]} 3... g6 {[%clk 0:02:54.7]}
4. Bg2 {[%clk 0:02:58.9]} 4... Bg7 {[%clk 0:02:55.2]} 5. d3 {[%clk 0:02:59.4]}
5... d6 {[%clk 0:02:51.4]} 6. Be3 {[%clk 0:02:59.2]} 6... Nd4 {[%clk 0:02:50.1]}
7. Qd2 {[%clk 0:02:51.9]} 7... h5 {[%clk 0:02:48.4]} 8. h3 {[%clk 0:02:50.1]}
8... Nf6 {[%clk 0:02:43.3]} 9. Nd1 {[%clk 0:02:48.8]} 9... Rb8 {[%clk
0:02:39.9]} 10. c3 {[%clk 0:02:48.4]} 10... Nc6 {[%clk 0:02:39.6]} 11. Ne2
{[%clk 0:02:48.6]} 11... b5 {[%clk 0:02:32.6]} 12. d4 {[%clk 0:02:21.1]} 12...
cxd4 {[%clk 0:02:13.2]} 13. cxd4 {[%clk 0:02:19.5]} 13... d5 {[%clk 0:02:12.7]}
14. e5 {[%clk 0:02:08]} 14... Ne4 {[%clk 0:02:12.4]} 15. Qc2 {[%clk 0:01:47.5]}
15... Bb7 {[%clk 0:01:55.3]} 16. f3 {[%clk 0:01:45.4]} 16... Nxg3 {[%clk
0:01:40.7]} 17. Nxg3 {[%clk 0:01:44.9]} 17... O-O {[%clk 0:01:27]} 18. O-O
{[%clk 0:01:39.2]} 18... Rc8 {[%clk 0:01:22.6]} 19. Qd2 {[%clk 0:01:39.3]} 19...
f6 {[%clk 0:01:17.9]} 20. f4 {[%clk 0:01:37.2]} 20... f5 {[%clk 0:01:08.1]} 21.
Nf2 {[%clk 0:01:27.9]} 21... e6 {[%clk 0:01:07.8]} 22. Nd3 {[%clk 0:01:25.5]}
22... Rc7 {[%clk 0:01:06.3]} 23. Nc5 {[%clk 0:01:25.4]} 23... Bc8 {[%clk
0:01:06.4]} 24. Rfc1 {[%clk 0:01:24]} 24... Rff7 {[%clk 0:01:05.4]} 25. Rc2
{[%clk 0:01:24]} 25... Bf8 {[%clk 0:01:04.8]} 26. Rac1 {[%clk 0:01:23.4]} 26...
Nb8 {[%clk 0:00:59.8]} 27. Nh1 {[%clk 0:01:00.6]} 27... Qe8 {[%clk 0:00:51.4]}
28. Nf2 {[%clk 0:00:53.7]} 28... Nd7 {[%clk 0:00:45.1]} 29. Nxd7 {[%clk
0:00:50.9]} 29... Rxc2 {[%clk 0:00:43.9]} 30. Rxc2 {[%clk 0:00:48.3]} 30... Bxd7
{[%clk 0:00:43.4]} 31. Nd3 {[%clk 0:00:48.3]} 31... b4 {[%clk 0:00:42]} 32. Nc5
{[%clk 0:00:47.8]} 32... Bb5 {[%clk 0:00:40.5]} 33. Bf1 {[%clk 0:00:47.9]} 33...
Bxf1 {[%clk 0:00:38.9]} 34. Kxf1 {[%clk 0:00:48.8]} 34... g5 {[%clk 0:00:38.9]}
35. fxg5 {[%clk 0:00:46.1]} 35... f4 {[%clk 0:00:38.9]} 36. Bf2 {[%clk
0:00:46.7]} 36... Rf5 {[%clk 0:00:36]} 37. h4 {[%clk 0:00:46.9]} 37... Qg6
{[%clk 0:00:34.9]} 38. Qd3 {[%clk 0:00:41.2]} 38... f3 {[%clk 0:00:34.4]} 39.
Nd7 {[%clk 0:00:40.5]} 39... Be7 {[%clk 0:00:32.3]} 40. Nf6+ {[%clk 0:00:38.5]}
40... Kf7 {[%clk 0:00:30.9]} 41. Rd2 {[%clk 0:00:23.7]} 41... a5 {[%clk
0:00:29.2]} 42. Be3 {[%clk 0:00:18.7]} 42... a4 {[%clk 0:00:23.2]} 43. Kf2
{[%clk 0:00:18.8]} 43... a3 {[%clk 0:00:23.4]} 44. bxa3 {[%clk 0:00:16.8]} 44...
bxa3 {[%clk 0:00:23.2]} 45. Qb5 {[%clk 0:00:15.4]} 45... Kg7 {[%clk 0:00:19.8]}
46. Qe8 {[%clk 0:00:12.9]} 46... Rxf6 {[%clk 0:00:18.8]} 47. exf6+ {[%clk
0:00:12.3]} 47... Kh7 {[%clk 0:00:18.5]} 48. Qxe7+ {[%clk 0:00:11.4]} 1-0

[Event "Early-Titled-Tuesday-Blitz-March-26-2024"]
[Site "Chess.com"]
[Date "2024.03.26"]
[Round "10"]
[White "MightyGMpretender"]
[Black "Kazmin_Semyon"]
[Result "1-0"]
[WhiteElo "2772"]
[BlackElo "2600"]
[TimeControl "180+1"]
[EndTime "9:53:27 PDT"]
[Termination "MightyGMpretender won by checkmate"]

1. e4 {[%clk 0:03:00.9]} 1... e6 {[%clk 0:02:59.7]} 2. Nc3 {[%clk 0:02:59.6]}
2... d5 {[%clk 0:03:00.6]} 3. d4 {[%clk 0:02:59.8]} 3... Bb4 {[%clk 0:03:00.4]}
4. Ne2 {[%clk 0:02:59.7]} 4... Nf6 {[%clk 0:02:54.6]} 5. e5 {[%clk 0:02:59.6]}
5... Nfd7 {[%clk 0:02:54.9]} 6. a3 {[%clk 0:02:59.4]} 6... Be7 {[%clk
0:02:55.1]} 7. f4 {[%clk 0:02:58.1]} 7... c5 {[%clk 0:02:54.8]} 8. Be3 {[%clk
0:02:58.7]} 8... Nc6 {[%clk 0:02:44.4]} 9. Qd2 {[%clk 0:02:58.2]} 9... Rb8
{[%clk 0:02:40.4]} 10. dxc5 {[%clk 0:02:57.5]} 10... Bxc5 {[%clk 0:02:34.5]} 11.
Bxc5 {[%clk 0:02:57.4]} 11... Nxc5 {[%clk 0:02:35.4]} 12. Nd4 {[%clk 0:02:57.9]}
12... Bd7 {[%clk 0:02:31.9]} 13. Be2 {[%clk 0:02:52.1]} 13... Qb6 {[%clk
0:02:26.6]} 14. O-O-O {[%clk 0:02:47.6]} 14... Nxd4 {[%clk 0:02:16.2]} 15. Qxd4
{[%clk 0:02:47]} 15... O-O {[%clk 0:02:16.9]} 16. h4 {[%clk 0:02:44]} 16... Rbc8
{[%clk 0:01:56.3]} 17. h5 {[%clk 0:02:39.3]} 17... h6 {[%clk 0:01:36.2]} 18. g4
{[%clk 0:02:38.3]} 18... Qa5 {[%clk 0:01:30.9]} 19. Qb4 {[%clk 0:02:27.7]} 19...
Qxb4 {[%clk 0:01:24.3]} 20. axb4 {[%clk 0:02:27.5]} 20... Na4 {[%clk 0:01:23.6]}
21. Nxa4 {[%clk 0:02:23.7]} 21... Bxa4 {[%clk 0:01:24.5]} 22. Bd3 {[%clk
0:02:24.1]} 22... a6 {[%clk 0:01:17.2]} 23. Kd2 {[%clk 0:02:15.1]} 23... Bb5
{[%clk 0:01:15.2]} 24. g5 {[%clk 0:02:11.9]} 24... Bxd3 {[%clk 0:00:59.4]} 25.
cxd3 {[%clk 0:02:11.6]} 25... Rc6 {[%clk 0:00:59.1]} 26. Rc1 {[%clk 0:02:10.3]}
26... Rb6 {[%clk 0:00:59.2]} 27. Kc3 {[%clk 0:01:33.8]} 27... Rc8+ {[%clk
0:00:58.9]} 28. Kb3 {[%clk 0:01:34.5]} 28... Rxc1 {[%clk 0:00:48.4]} 29. Rxc1
{[%clk 0:01:34.9]} 29... a5 {[%clk 0:00:49.1]} 30. Rc8+ {[%clk 0:01:20.8]} 30...
Kh7 {[%clk 0:00:49.2]} 31. Kc3 {[%clk 0:01:16.5]} 31... Rxb4 {[%clk 0:00:47.2]}
32. d4 {[%clk 0:01:14.7]} 32... hxg5 {[%clk 0:00:21.2]} 33. fxg5 {[%clk
0:01:14.3]} 33... Rb6 {[%clk 0:00:18.7]} 34. Rc7 {[%clk 0:00:58.3]} 34... Kg8
{[%clk 0:00:11.2]} 35. Rc8+ {[%clk 0:00:54.8]} 35... Kh7 {[%clk 0:00:11.5]} 36.
b3 {[%clk 0:00:46.9]} 36... Rb5 {[%clk 0:00:06.7]} 37. Rf8 {[%clk 0:00:43.8]}
37... f5 {[%clk 0:00:02.4]} 38. exf6 {[%clk 0:00:40]} 38... gxf6 {[%clk
0:00:02]} 39. Rf7+ {[%clk 0:00:40.6]} 39... Kg8 {[%clk 0:00:02.2]} 40. g6 {[%clk
0:00:41.3]} 40... Rb6 {[%clk 0:00:02]} 41. h6 {[%clk 0:00:41.6]} 41... Rc6+
{[%clk 0:00:02.8]} 42. Kd3 {[%clk 0:00:41.2]} 42... Rc8 {[%clk 0:00:03.5]} 43.
Rxf6 {[%clk 0:00:40.8]} 43... Re8 {[%clk 0:00:02.6]} 44. Rf7 {[%clk 0:00:40.9]}
44... b6 {[%clk 0:00:03.2]} 45. Rb7 {[%clk 0:00:40.6]} 45... e5 {[%clk
0:00:03.5]} 46. dxe5 {[%clk 0:00:40.7]} 46... a4 {[%clk 0:00:02.1]} 47. bxa4
{[%clk 0:00:40.6]} 47... d4 {[%clk 0:00:03]} 48. Kxd4 {[%clk 0:00:40.3]} 48...
b5 {[%clk 0:00:03.9]} 49. axb5 {[%clk 0:00:40.4]} 49... Rd8+ {[%clk 0:00:03.2]}
50. Ke4 {[%clk 0:00:40.9]} 50... Re8 {[%clk 0:00:04.1]} 51. b6 {[%clk
0:00:41.2]} 51... Rd8 {[%clk 0:00:05]} 52. Rc7 {[%clk 0:00:41.6]} 52... Re8
{[%clk 0:00:05.9]} 53. b7 {[%clk 0:00:42.2]} 53... Rd8 {[%clk 0:00:06.8]} 54.
Rc8 {[%clk 0:00:42.6]} 54... Re8 {[%clk 0:00:07.7]} 55. Rxe8# {[%clk 0:00:42.5]}
1-0

[Event "Early-Titled-Tuesday-Blitz-March-26-2024"]
[Site "Chess.com"]
[Date "2024.03.26"]
[Round "10"]
[White "Kotofeyca"]
[Black "Xavier_mompel"]
[Result "1-0"]
[WhiteElo "2498"]
[BlackElo "2363"]
[TimeControl "180+1"]
[EndTime "9:53:28 PDT"]
[Termination "Kotofeyca won on time"]

1. d4 {[%clk 0:03:00.9]} 1... d5 {[%clk 0:02:59.5]} 2. c4 {[%clk 0:03:01.4]}
2... e6 {[%clk 0:02:59.6]} 3. Nc3 {[%clk 0:03:02]} 3... Nf6 {[%clk 0:03:00]} 4.
cxd5 {[%clk 0:03:02.6]} 4... exd5 {[%clk 0:03:00.1]} 5. Bg5 {[%clk 0:03:03.2]}
5... c6 {[%clk 0:03:00]} 6. Qc2 {[%clk 0:03:03.4]} 6... Be7 {[%clk 0:02:59.5]}
7. e3 {[%clk 0:03:03.9]} 7... h6 {[%clk 0:02:56.7]} 8. Bh4 {[%clk 0:03:02.3]}
8... O-O {[%clk 0:02:56.9]} 9. Bd3 {[%clk 0:03:02.3]} 9... Re8 {[%clk 0:02:56]}
10. Nf3 {[%clk 0:03:02.4]} 10... Nbd7 {[%clk 0:02:54.6]} 11. O-O {[%clk
0:03:01.9]} 11... Nf8 {[%clk 0:02:48.5]} 12. Rab1 {[%clk 0:03:01.1]} 12... a5
{[%clk 0:02:43.8]} 13. a3 {[%clk 0:03:00.9]} 13... Bg4 {[%clk 0:02:36.6]} 14.
Ne5 {[%clk 0:03:00.4]} 14... Be6 {[%clk 0:02:34.3]} 15. b4 {[%clk 0:03:00.5]}
15... axb4 {[%clk 0:02:33]} 16. axb4 {[%clk 0:03:01.4]} 16... N8d7 {[%clk
0:02:30]} 17. f4 {[%clk 0:02:58.3]} 17... Nxe5 {[%clk 0:02:22.9]} 18. dxe5
{[%clk 0:02:49.5]} 18... Ng4 {[%clk 0:02:22.7]} 19. Bxe7 {[%clk 0:02:48.3]}
19... Rxe7 {[%clk 0:02:19.8]} 20. Qe2 {[%clk 0:02:13.4]} 20... Nxe3 {[%clk
0:01:49.2]} 21. Qxe3 {[%clk 0:02:09.2]} 21... d4 {[%clk 0:01:49.4]} 22. Qe4
{[%clk 0:02:04.2]} 22... g6 {[%clk 0:01:39.1]} 23. Ne2 {[%clk 0:01:49.7]} 23...
Bf5 {[%clk 0:01:39.1]} 24. Qf3 {[%clk 0:01:45.9]} 24... Ra3 {[%clk 0:01:39.4]}
25. Rfd1 {[%clk 0:01:40.1]} 25... h5 {[%clk 0:01:36.1]} 26. h3 {[%clk
0:01:26.5]} 26... h4 {[%clk 0:01:33.8]} 27. Nc1 {[%clk 0:01:21.6]} 27... Qb6
{[%clk 0:01:12.1]} 28. Qe2 {[%clk 0:01:14.3]} 28... Be6 {[%clk 0:01:12.5]} 29.
Qc2 {[%clk 0:00:59.3]} 29... Rc3 {[%clk 0:01:10.4]} 30. Qd2 {[%clk 0:00:55]}
30... Bd5 {[%clk 0:00:56.9]} 31. Kh2 {[%clk 0:00:53.8]} 31... Re8 {[%clk
0:00:52]} 32. Ne2 {[%clk 0:00:49.7]} 32... Ra3 {[%clk 0:00:50.3]} 33. Ra1 {[%clk
0:00:45.5]} 33... Rea8 {[%clk 0:00:40.5]} 34. Rxa3 {[%clk 0:00:45.4]} 34... Rxa3
{[%clk 0:00:41.4]} 35. f5 {[%clk 0:00:42.7]} 35... Ra2 {[%clk 0:00:33.6]} 36.
Qg5 {[%clk 0:00:38.2]} 36... Qc7 {[%clk 0:00:09.7]} 37. fxg6 {[%clk 0:00:37]}
37... fxg6 {[%clk 0:00:09.9]} 38. Qxg6+ {[%clk 0:00:36.4]} 38... Kh8 {[%clk
0:00:10.4]} 39. Qh6+ {[%clk 0:00:33.9]} 39... Kg8 {[%clk 0:00:10.2]} 40. Qg5+
{[%clk 0:00:34.4]} 40... Qg7 {[%clk 0:00:05.7]} 41. Qxg7+ {[%clk 0:00:33.5]}
41... Kxg7 {[%clk 0:00:06.6]} 42. Nf4 {[%clk 0:00:32.1]} 42... Kf7 {[%clk
0:00:04.8]} 43. Nxd5 {[%clk 0:00:32]} 43... cxd5 {[%clk 0:00:05.7]} 44. Re1
{[%clk 0:00:30.8]} 44... Ke6 {[%clk 0:00:04.9]} 45. Be2 {[%clk 0:00:29.7]} 45...
Rb2 {[%clk 0:00:03]} 46. Bg4+ {[%clk 0:00:30.6]} 46... Ke7 {[%clk 0:00:02.9]}
47. e6 {[%clk 0:00:31.3]} 47... Rxb4 {[%clk 0:00:02.6]} 48. Rf1 {[%clk
0:00:31.9]} 48... Rb2 {[%clk 0:00:02]} 49. Rf7+ {[%clk 0:00:32.8]} 49... Ke8
{[%clk 0:00:01.5]} 50. Rc7 {[%clk 0:00:28.7]} 50... d3 {[%clk 0:00:01.6]} 51. e7
{[%clk 0:00:29]} 1-0

[Event "Early-Titled-Tuesday-Blitz-March-26-2024"]
[Site "Chess.com"]
[Date "2024.03.26"]
[Round "10"]
[White "stratacticos"]
[Black "Aural1011"]
[Result "0-1"]
[WhiteElo "1847"]
[BlackElo "1836"]
[TimeControl "180+1"]
[EndTime "9:53:28 PDT"]
[Termination "Aural1011 won by resignation"]

1. b4 {[%clk 0:02:57.6]} 1... d5 {[%clk 0:02:57.4]} 2. Bb2 {[%clk 0:02:54]} 2...
e6 {[%clk 0:02:57.9]} 3. Nf3 {[%clk 0:02:52]} 3... Nf6 {[%clk 0:02:58.4]} 4. a3
{[%clk 0:02:51.2]} 4... c5 {[%clk 0:02:54.2]} 5. b5 {[%clk 0:02:49]} 5... Be7
{[%clk 0:02:50.1]} 6. e3 {[%clk 0:02:48.7]} 6... O-O {[%clk 0:02:50.5]} 7. Be2
{[%clk 0:02:47.7]} 7... a6 {[%clk 0:02:48.4]} 8. a4 {[%clk 0:02:46.7]} 8... axb5
{[%clk 0:02:47.2]} 9. axb5 {[%clk 0:02:46.4]} 9... Rxa1 {[%clk 0:02:45.9]} 10.
Bxa1 {[%clk 0:02:46.1]} 10... Bd7 {[%clk 0:02:45.5]} 11. c4 {[%clk 0:02:42]}
11... dxc4 {[%clk 0:02:21.4]} 12. Bxc4 {[%clk 0:02:40.3]} 12... Nd5 {[%clk
0:02:21.9]} 13. Bxd5 {[%clk 0:02:30.8]} 13... exd5 {[%clk 0:02:22.8]} 14. Nc3
{[%clk 0:02:31.5]} 14... d4 {[%clk 0:01:42.1]} 15. exd4 {[%clk 0:02:30.4]} 15...
cxd4 {[%clk 0:01:43]} 16. Nxd4 {[%clk 0:02:30.2]} 16... Bf6 {[%clk 0:01:43.3]}
17. Nde2 {[%clk 0:02:16.9]} 17... Qa5 {[%clk 0:01:34.3]} 18. O-O {[%clk
0:02:15.3]} 18... Rd8 {[%clk 0:01:24.3]} 19. Qb3 {[%clk 0:02:09.5]} 19... Be6
{[%clk 0:01:23.8]} 20. Qb2 {[%clk 0:02:05.4]} 20... Bc4 {[%clk 0:01:21.7]} 21.
Re1 {[%clk 0:02:04.2]} 21... h6 {[%clk 0:01:00.7]} 22. h3 {[%clk 0:01:52.6]}
22... Re8 {[%clk 0:00:58.7]} 23. d4 {[%clk 0:01:46.1]} 23... Bxd4 {[%clk
0:00:52]} 24. Qd2 {[%clk 0:01:41.6]} 24... Bf6 {[%clk 0:00:11.4]} 25. Ng3 {[%clk
0:01:32.7]} 25... Rxe1+ {[%clk 0:00:07.9]} 26. Qxe1 {[%clk 0:01:32.3]} 26...
Bxb5 {[%clk 0:00:07]} 27. Nh5 {[%clk 0:01:23.8]} 27... Bd4 {[%clk 0:00:04.4]}
28. Qc1 {[%clk 0:01:20.5]} 28... Nc6 {[%clk 0:00:04.2]} 29. Nxb5 {[%clk
0:01:18]} 29... Qxb5 {[%clk 0:00:04.5]} 30. Bxd4 {[%clk 0:01:14.9]} 30... Nxd4
{[%clk 0:00:05.4]} 31. Qa1 {[%clk 0:01:07.1]} 31... Qxh5 {[%clk 0:00:03.4]} 32.
Qxd4 {[%clk 0:01:06.5]} 32... Qb5 {[%clk 0:00:03.4]} 33. Qd8+ {[%clk 0:00:56.5]}
33... Kh7 {[%clk 0:00:03.9]} 34. Qe7 {[%clk 0:00:55.9]} 34... Qb1+ {[%clk
0:00:04]} 35. Kh2 {[%clk 0:00:55.8]} 35... f6 {[%clk 0:00:03.7]} 36. h4 {[%clk
0:00:52.4]} 36... b5 {[%clk 0:00:04]} 37. h5 {[%clk 0:00:52.1]} 37... Qf5 {[%clk
0:00:04.6]} 38. Qe2 {[%clk 0:00:49.9]} 38... Qe5+ {[%clk 0:00:04.8]} 39. Qxe5
{[%clk 0:00:46.3]} 39... fxe5 {[%clk 0:00:05.7]} 40. Kg3 {[%clk 0:00:46.2]}
40... b4 {[%clk 0:00:06.2]} 41. Kf3 {[%clk 0:00:47.1]} 41... b3 {[%clk
0:00:06.7]} 42. Ke3 {[%clk 0:00:48]} 42... b2 {[%clk 0:00:07.4]} 43. Ke4 {[%clk
0:00:48.2]} 43... b1=Q+ {[%clk 0:00:08.3]} 44. Kxe5 {[%clk 0:00:49]} 44... Qd3
{[%clk 0:00:08.5]} 45. Kf4 {[%clk 0:00:47.6]} 45... Qe2 {[%clk 0:00:08.5]} 46.
Kg3 {[%clk 0:00:45.9]} 46... Qxh5 {[%clk 0:00:08.9]} 47. f3 {[%clk 0:00:45.7]}
47... Qg5+ {[%clk 0:00:09.5]} 48. Kf2 {[%clk 0:00:44.8]} 48... Qd2+ {[%clk
0:00:10.2]} 49. Kg3 {[%clk 0:00:44.8]} 49... h5 {[%clk 0:00:10.6]} 50. Kh3
{[%clk 0:00:41.5]} 50... Kg6 {[%clk 0:00:11.2]} 51. g3 {[%clk 0:00:38.8]} 51...
Kg5 {[%clk 0:00:11.6]} 52. f4+ {[%clk 0:00:38.1]} 52... Kf6 {[%clk 0:00:11.1]}
53. g4 {[%clk 0:00:35.5]} 53... Qe3+ {[%clk 0:00:11.1]} 0-1